[Event "URU-ch Semi Final 2020"]
[Site "Montevideo"]
[Date "2020.02.23"]
[Round "5.16"]
[White "Rey, Fernando"]
[Black "Zaruski, Julio"]
[Result "0-1"]
[ECO "B07"]
[WhiteElo "1640"]
[BlackElo "1822"]
[Annotator "NA RC"]
[PlyCount "78"]
[EventDate "2020.02.22"]
[EventType "swiss"]
[EventCountry "URU"]
[SourceTitle "playchess.com"]
[Source "ChessBase"]
[SourceQuality "1"]
[TimeControl "5400+30"]

{[%evp 8,70,40,57,45,32767,32767,32767,32767,32767,32767,32767,32767,32767,32767,373,346,32767,32767,32767,32767,212,266,154,223,171,197,32767,131,59,130,148,160,57,79,24,168,-468,0,0,0,0,0,6,24,19,50,37,29,30,47,48,46,28,53,-18,-46,-129,-64,-75,-77,-166,-104,-94,-81]} 1. e4 {[%emt 0:00:00]} d6 {[%emt 0:00:47]} 2. d4 {[%emt 0:00:00]} Nf6 {[%emt 0:00:35]} 3. Nc3 {[%emt 0:00:00]} g6 {[%emt 0:00:47]} 4. f3 {[%emt 0:00:04]} Bg7 {[%emt 0:00:14]} 5. Be3 {[%emt 0:00:08]} O-O {[%emt 0:00:17]} 6. Qd2 {[%emt 0:00:06]} c6 {[%emt 0:00:24]} 7. O-O-O {[%emt 0:00:09]} b5 {[%emt 0:01:03]} 8. g4 {[%emt 0:00:39]} Nfd7 {[%emt 0:00:06] B07: Pirc Defence: Miscellaneous Systems.} 9. h4 {[%emt 0:00:28]} Nb6 {[%emt 0:00:30] [#]} 10. h5 $146 {[%emt 0:00:25]} ({Predecessor:} 10. Bh6 Be6 11. Bxg7 Kxg7 12. b3 h5 13. g5 N8d7 14. d5 cxd5 15. exd5 Bf5 16. Nxb5 {1-0 (34) Ilic,L (2199)-Semsiu,A (1988) Skopje 2012}) 10... Nc4 {[%emt 0:00:12]} 11. Bxc4 $1 {[%emt 0:00:10]} bxc4 {[%emt 0:00:06]} 12. hxg6 {[%emt 0:00:14]} fxg6 {[%emt 0:00:07]} 13. Bh6 {[%emt 0:00:31]} Rf7 {[%emt 0:00:05]} 14. Bxg7 {[%emt 0:00:30]} (14. Nh3 $142) 14... Rxg7 {[%emt 0:01:12]} 15. Nge2 {[%emt 0:09:36]} e6 {[%emt 0:00:37]} (15... Qb6 $16 16. e5 d5) 16. Ng3 {[%emt 0:10:06]} d5 {[%emt 0:01:07]} 17. e5 {[%emt 0:01:00]} Nd7 {[%emt 0:02:28]} 18. Rh3 {[%emt 0:03:35]} (18. Nge2 $16) 18... Nf8 {[%emt 0:01:53]} (18... Rb8 $14) 19. Na4 {[%emt 0:04:16]} Rb8 {[%emt 0:00:25]} 20. c3 {[%emt 0:01:18]} ({Better is} 20. Ne2 $16) 20... Qa5 {[%emt 0:01:06]} 21. Qc2 {[%emt 0:00:09]} Rgb7 {[%emt 0:09:53]} (21... c5 $14) 22. Kd2 $4 {[%emt 0:00:37] [#]} (22. Rdh1 $18) 22... Qd8 $2 {[%emt 0:00:22]} ({Better is} 22... c5 $1 $19 {[%cal Rc5d4][%mdl 512]} 23. Ke3 (23. Nxc5 Rxb2) 23... Bd7 24. Nxc5 Rxb2 {[%mdl 64] Double Attack}) 23. Rb1 {[%emt 0:01:21]} Qg5+ {[%emt 0:00:14]} 24. Ke2 {[%emt 0:00:09]} Rf7 {[%emt 0:02:39]} 25. Qc1 {[%emt 0:01:55]} Qxc1 {[%emt 0:04:15]} 26. Rxc1 {[%emt 0:00:05]} Nd7 {[%emt 0:00:35]} 27. Rc2 {[%emt 0:00:48]} Rb5 {[%emt 0:00:09]} 28. Ke3 {[%emt 0:00:42]} Ra5 {[%emt 0:00:18]} 29. b3 {[%emt 0:00:12]} cxb3 {[%emt 0:00:08]} 30. axb3 {[%emt 0:00:06]} c5 {[%emt 0:01:56]} 31. dxc5 {[%emt 0:00:27]} (31. Nxc5 $14 Nxe5 32. Ne2 (32. dxe5 Rxc5 33. b4 Rc6 $11)) 31... Nxe5 {[%emt 0:00:07]} 32. Nf1 {[%emt 0:00:54] [#]} (32. Ne2 $15) 32... Nxg4+ $1 {[%emt 0:01:13]} 33. fxg4 {[%emt 0:00:26]} Rxf1 {[%emt 0:00:05]} 34. Rf3 {[%emt 0:01:13] [#]} ({White should try} 34. Rch2 $15 Rf7 35. Kd4) 34... Rxf3+ {[%emt 0:01:20]} ({Better is} 34... Re1+ $1 $19 35. Re2 Rxe2+ 36. Kxe2 Bd7) 35. Kxf3 {[%emt 0:00:04]} Bd7 $17 {[%emt 0:01:43]} 36. Ra2 {[%emt 0:01:27]} g5 {[%emt 0:05:15]} 37. Ke3 {[%emt 0:00:58]} e5 {[%emt 0:04:04]} 38. b4 {[%emt 0:00:09]} Rxa4 {[%emt 0:00:10]} 39. Rxa4 {[%emt 0:00:06]} Bxa4 {[%emt 0:00:09]} 0-1

[Event "URU-ch Semi Final 2020"]
[Site "Montevideo"]
[Date "2020.02.23"]
[Round "5.17"]
[White "De los Reyes, Mauro"]
[Black "Torales, Agustin"]
[Result "1/2-1/2"]
[ECO "B22"]
[WhiteElo "1815"]
[BlackElo "1623"]
[Annotator "NA RC"]
[PlyCount "63"]
[EventDate "2020.02.22"]
[EventType "swiss"]
[EventCountry "URU"]
[SourceTitle "playchess.com"]
[Source "ChessBase"]
[SourceQuality "1"]
[TimeControl "5400+30"]

{[%evp 8,63,34,0,-4,-3,7,0,-13,-33,-2,-10,-2,-1,0,-1,-5,-6,-5,-5,32767,32767,32767,-12,-5,-8,0,0,0,0,-4,-18,-5,-23,32767,-29,32767,32767,32767,32767,-46,-62,-54,32767,32767,32767,32767,32767,32767,-81,-16,-12,-19,-44,-23,-34,-48,-50]} 1. e4 {[%emt 0:00:00]} c5 {[%emt 0:00:00]} 2. c3 {[%emt 0:00:00]} d5 {[%emt 0:00:03]} 3. exd5 {[%emt 0:00:00]} Qxd5 {[%emt 0:00:14]} 4. d4 {[%emt 0:00:03]} cxd4 {[%emt 0:01:08]} 5. Qxd4 {[%emt 0:03:20]} Qxd4 {[%emt 0:00:18]} 6. cxd4 {[%emt 0:00:06] B22: Sicilian: 2 c3.} Nf6 {[%emt 0:04:19]} 7. Nc3 {[%emt 0:00:35]} e6 {[%emt 0:00:07]} 8. Nb5 {[%emt 0:01:25]} Na6 {[%emt 0:01:26] [#]} 9. a3 $146 {[%emt 0:01:23]} ({Predecessor:} 9. Bd2 Be7 10. a3 O-O 11. Bd3 Bd7 12. Rc1 Bc6 13. f3 Rfd8 14. Ba5 Rd5 15. Nc7 Nxc7 16. Bxc7 Rxd4 {0-1 (71) Banas,K (2115)-Lanc,A (2366) Slovakia 2002}) 9... Be7 {[%emt 0:04:25]} 10. Nf3 {[%emt 0:07:57]} O-O {[%emt 0:01:31]} 11. Be2 {[%emt 0:00:28]} Bd7 {[%emt 0:02:59]} 12. O-O {[%emt 0:00:34]} Bxb5 {[%emt 0:00:57]} 13. Bxb5 {[%emt 0:00:22]} Nc7 {[%emt 0:00:04]} 14. Ba4 {[%emt 0:01:50]} Rfd8 {[%emt 0:04:13]} 15. Be3 {[%emt 0:02:29]} Ncd5 {[%emt 0:03:19]} 16. Rac1 {[%emt 0:00:50]} Nb6 {[%emt 0:08:10]} 17. Bb3 {[%emt 0:01:20]} Nfd5 {[%emt 0:00:11]} 18. Rc2 {[%emt 0:01:19]} Bf6 {[%emt 0:02:03]} 19. h3 {[%emt 0:04:23]} h6 {[%emt 0:03:46]} 20. Rfc1 {[%emt 0:01:02]} a5 {[%emt 0:09:42]} 21. Bxd5 {[%emt 0:03:21]} Nxd5 {[%emt 0:00:23]} 22. b3 {[%emt 0:00:19]} Be7 {[%emt 0:05:48]} 23. a4 {[%emt 0:07:05]} f6 {[%emt 0:06:20]} 24. Bd2 {[%emt 0:05:09]} Kf7 {[%emt 0:01:52]} 25. Rc4 {[%emt 0:01:07]} b5 {[%emt 0:00:51]} 26. axb5 {[%emt 0:01:07]} Rdb8 {[%emt 0:00:06]} 27. Ra1 {[%emt 0:04:35]} Rxb5 {[%emt 0:00:59]} 28. Rca4 {[%emt 0:01:07]} Bb4 {[%emt 0:03:04]} 29. Bxb4 {[%emt 0:01:25]} Nxb4 {[%emt 0:00:02]} 30. Rc1 {[%emt 0:01:15]} Nd5 {[%emt 0:02:07]} 31. Ra3 {[%emt 0:03:55]} Ra7 {[%emt 0:03:45]} 32. g3 $15 1/2-1/2

[Event "URU-ch Semi Final 2020"]
[Site "Montevideo"]
[Date "2020.02.23"]
[Round "5.18"]
[White "Garcia, Matias"]
[Black "Miraballes Lopez, Andres"]
[Result "1-0"]
[ECO "B23"]
[WhiteElo "1810"]
[BlackElo "1676"]
[Annotator "NA RC"]
[PlyCount "61"]
[EventDate "2020.02.22"]
[EventType "swiss"]
[EventCountry "URU"]
[SourceTitle "playchess.com"]
[Source "ChessBase"]
[SourceQuality "1"]
[TimeControl "5400+30"]

{[%evp 8,61,1,-7,0,-13,-4,-2,-1,-18,32767,17,50,12,24,32767,0,15,45,0,127,-8,32767,32767,32767,32767,32767,32767,32767,32767,32767,188,238,32767,234,255,268,200,234,249,281,304,335,371,331,32767,32767,955,954,1035,29989,29984,32767,29992,29992,29993]} 1. e4 {[%emt 0:00:00]} c5 {[%emt 0:10:09]} 2. Nc3 {[%emt 0:00:00]} Nc6 {[%emt 0:00:54]} 3. f4 {[%emt 0:00:14]} g6 {[%emt 0:00:06]} 4. Nf3 {[%emt 0:00:05]} Bg7 {[%emt 0:00:05]} 5. Bb5 {[%emt 0:00:43]} Nd4 {[%emt 0:00:17]} 6. O-O {[%emt 0:00:03]} Nxb5 {[%emt 0:00:11]} 7. Nxb5 {[%emt 0:00:07]} a6 {[%emt 0:01:19]} 8. Nc3 {[%emt 0:00:12]} Nh6 {[%emt 0:00:44] 8...b5 gains popularity. B23: Closed Sicilian: Lines without g3.} 9. d3 {[%emt 0:01:32]} O-O {[%emt 0:00:56]} 10. Qe1 {[%emt 0:01:09]} e6 {[%emt 0:02:18] [#]} 11. h3 $146 {[%emt 0:04:33]} ({Predecessor:} 11. Be3 b6 12. h3 d5 13. Bf2 Bb7 14. e5 Rc8 15. d4 Qd7 16. Rd1 a5 17. dxc5 bxc5 {1-0 (25) Charlton,G-Zybura,A Toronto 2000}) 11... b5 {[%emt 0:01:44]} 12. e5 {[%emt 0:08:21]} Bb7 {[%emt 0:17:01]} 13. Ne4 {[%emt 0:08:51]} Qe7 {[%emt 0:09:06]} (13... Nf5 $11 {remains equal.}) 14. Nd6 {[%emt 0:06:28]} (14. g4 $16) 14... Bxf3 {[%emt 0:04:31]} 15. Rxf3 {[%emt 0:01:18]} Nf5 {[%emt 0:00:14]} 16. Be3 {[%emt 0:03:17]} Qd8 {[%emt 0:14:43]} 17. Nxf5 {[%emt 0:04:19]} gxf5 {[%emt 0:16:28]} 18. Bxc5 {[%emt 0:00:51]} Re8 {[%emt 0:00:04]} 19. a4 {[%emt 0:08:26]} Qc7 {[%emt 0:01:56]} 20. Qf2 {[%emt 0:05:07]} Rac8 {[%emt 0:01:45]} 21. d4 {[%emt 0:01:48]} f6 {[%emt 0:00:22]} (21... b4 $142 22. Qh4 Kh8) 22. Rc3 {[%emt 0:03:20]} Qb7 {[%emt 0:03:53]} 23. axb5 {[%emt 0:02:38]} Qxb5 {[%emt 0:00:37]} 24. Rb3 {[%emt 0:00:47]} Qc4 {[%emt 0:00:29]} 25. Rb4 {[%emt 0:01:49]} Qd5 {[%emt 0:00:32]} 26. Rxa6 {[%emt 0:02:05]} fxe5 {[%emt 0:02:41]} 27. Rd6 {[%emt 0:02:00]} Qa8 {[%emt 0:03:07]} 28. Rxd7 {[%emt 0:03:19]} Bh6 {[%emt 0:09:07]} 29. Qh4 {[%emt 0:03:13]} Qa1+ {[%emt 0:01:24] [#]} 30. Kh2 $1 {[%emt 0:01:10]} Bxf4+ {[%emt 0:02:42]} 31. g3 {[%emt 0:00:48]} 1-0

[Event "URU-ch Semi Final 2020"]
[Site "Montevideo"]
[Date "2020.02.23"]
[Round "5.19"]
[White "Campora, Edgardo"]
[Black "Lanaro, Emilio"]
[Result "1-0"]
[ECO "B50"]
[WhiteElo "1676"]
[BlackElo "1670"]
[Annotator "NA RC"]
[PlyCount "99"]
[EventDate "2020.02.22"]
[EventType "swiss"]
[EventCountry "URU"]
[SourceTitle "playchess.com"]
[Source "ChessBase"]
[SourceQuality "1"]
[TimeControl "5400+30"]

1. e4 {[%emt 0:00:00]} c5 {[%emt 0:01:13]} 2. Nf3 {[%emt 0:00:00]} d6 {[%emt 0:00:05]} 3. c3 {[%emt 0:00:00]} Nf6 {[%emt 0:00:24]} 4. h3 {[%emt 0:00:00]} Nc6 {[%emt 0:00:28]} 5. Bd3 {[%emt 0:00:00]} d5 {[%emt 0:00:15]} 6. exd5 {[%emt 0:01:00]} Qxd5 {[%emt 0:00:10]} 7. Bc2 {[%emt 0:00:26]} Bf5 {[%emt 0:01:11]} 8. Bxf5 {[%emt 0:03:26]} Qxf5 {[%emt 0:00:15]} 9. O-O {[%emt 0:09:09]} e6 {[%emt 0:08:19]} 10. Na3 {[%emt 0:02:26]} Be7 {[%emt 0:01:34]} 11. d4 {[%emt 0:01:05]} O-O {[%emt 0:03:51]} 12. dxc5 {[%emt 0:16:24]} Bxc5 {[%emt 0:03:11]} 13. Nc4 {[%emt 0:07:55]} Rfd8 {[%emt 0:11:53]} 14. Qb3 {[%emt 0:09:49]} Qd5 {[%emt 0:39:03]} 15. Bg5 {[%emt 0:02:05]} b5 {[%emt 0:03:05]} 16. Ncd2 {[%emt 0:02:26]} Qxb3 {[%emt 0:04:58]} 17. Nxb3 {[%emt 0:01:12]} Be7 {[%emt 0:00:03]} 18. Nbd4 {[%emt 0:04:42]} Nxd4 {[%emt 0:04:01]} 19. Nxd4 {[%emt 0:00:05]} Rd5 {[%emt 0:02:05]} 20. Bh4 {[%emt 0:15:59]} Bc5 {[%emt 0:06:17]} 21. Nxb5 {[%emt 0:02:56]} Bxf2+ {[%emt 0:00:09]} 22. Rxf2 {[%emt 0:00:07]} Rxb5 {[%emt 0:00:04]} 23. Bxf6 {[%emt 0:00:07]} gxf6 {[%emt 0:00:06]} 24. c4 {[%emt 0:01:00]} Rbb8 {[%emt 0:02:55]} 25. b3 {[%emt 0:02:44]} f5 {[%emt 0:01:04]} 26. Rd1 {[%emt 0:01:41]} a5 {[%emt 0:01:50]} 27. c5 {[%emt 0:02:58]} Rc8 {[%emt 0:00:50]} 28. Rc2 {[%emt 0:00:08]} Rab8 {[%emt 0:01:03]} 29. c6 {[%emt 0:01:46]} Kf8 {[%emt 0:01:17]} 30. Rd7 {[%emt 0:05:06]} Ke8 {[%emt 0:00:57]} 31. Rb7 {[%emt 0:00:10]} Kf8 {[%emt 0:01:57]} 32. a3 {[%emt 0:00:33]} Kg7 {[%emt 0:00:14]} 33. Rxb8 {[%emt 0:02:04]} Rxb8 {[%emt 0:00:04]} 34. c7 {[%emt 0:00:06]} Rc8 {[%emt 0:00:09]} 35. b4 {[%emt 0:00:04]} axb4 {[%emt 0:00:51]} 36. axb4 {[%emt 0:00:03]} Kf6 {[%emt 0:00:45]} 37. b5 {[%emt 0:00:06]} Ke7 {[%emt 0:00:03]} 38. b6 {[%emt 0:00:06]} Kd7 {[%emt 0:00:10]} 39. Rd2+ {[%emt 0:00:07]} Kc6 {[%emt 0:00:52]} 40. Rb2 {[%emt 0:03:14]} Kb7 {[%emt 0:00:11]} 41. Kf2 {[%emt 0:00:05]} Re8 {[%emt 0:00:52]} 42. Rd2 {[%emt 0:01:14]} Ra8 {[%emt 0:00:59]} 43. Rb2 {[%emt 0:03:47]} e5 {[%emt 0:00:47]} 44. Ke2 {[%emt 0:01:32]} f6 {[%emt 0:00:17]} 45. Kd3 {[%emt 0:00:05]} Re8 {[%emt 0:01:07]} 46. Kc4 {[%emt 0:00:48]} e4 {[%emt 0:00:33]} 47. Kc5 {[%emt 0:00:10]} e3 {[%emt 0:00:25]} 48. Ra2 {[%emt 0:00:22]} Re5+ {[%emt 0:00:23]} 49. Kd6 {[%emt 0:00:14]} e2 {[%emt 0:00:22]} 50. Ra8 {[%emt 0:01:33]} 1-0

[Event "URU-ch Semi Final 2020"]
[Site "Montevideo"]
[Date "2020.02.23"]
[Round "5.20"]
[White "Osinaga, Eduardo"]
[Black "Belbey, Juan"]
[Result "0-1"]
[ECO "A11"]
[WhiteElo "1697"]
[BlackElo "1611"]
[Annotator "NA RC"]
[PlyCount "62"]
[EventDate "2020.02.22"]
[EventType "swiss"]
[EventCountry "URU"]
[SourceTitle "playchess.com"]
[Source "ChessBase"]
[SourceQuality "1"]
[TimeControl "5400+30"]

1. e4 {[%emt 0:02:23]} a6 {[%emt 0:00:33]} 2. d4 {[%emt 0:00:11]} d6 {[%emt 0:00:32]} 3. Nf3 {[%emt 0:00:23]} g6 {[%emt 0:00:13]} 4. Bd3 {[%emt 0:00:52]} Bg7 {[%emt 0:00:13]} 5. Be3 {[%emt 0:00:37]} Nd7 {[%emt 0:00:13]} 6. c3 {[%emt 0:00:32]} c5 {[%emt 0:00:16]} 7. d5 Ngf6 {[%emt 0:00:24]} 8. h3 {[%emt 0:01:09]} b5 {[%emt 0:00:30]} 9. O-O {[%emt 0:00:26]} Qc7 {[%emt 0:00:33]} 10. Bc2 {[%emt 0:02:29]} Bb7 {[%emt 0:00:36]} 11. Nbd2 {[%emt 0:01:47]} e6 {[%emt 0:00:37]} 12. dxe6 {[%emt 0:00:47]} fxe6 {[%emt 0:00:14]} 13. Ng5 {[%emt 0:00:52]} Nf8 {[%emt 0:00:15]} 14. f4 {[%emt 0:01:03]} h6 {[%emt 0:00:36]} 15. Ngf3 {[%emt 0:01:10]} e5 {[%emt 0:00:41]} 16. fxe5 {[%emt 0:03:05]} dxe5 {[%emt 0:00:11]} 17. Qe1 {[%emt 0:01:08]} Nh5 {[%emt 0:01:30]} 18. c4 {[%emt 0:02:32]} Ne6 {[%emt 0:00:20]} 19. Nh4 {[%emt 0:01:36]} O-O-O {[%emt 0:02:00]} 20. cxb5 {[%emt 0:00:50]} axb5 {[%emt 0:00:29]} 21. Nb3 {[%emt 0:00:57]} Nd4 {[%emt 0:00:39]} 22. Bxd4 {[%emt 0:00:33]} exd4 {[%emt 0:00:12]} 23. Nxg6 {[%emt 0:01:57]} d3 {[%emt 0:00:22]} 24. Bd1 {[%emt 0:00:36]} Ng3 {[%emt 0:00:38]} 25. Rf4 {[%emt 0:03:49]} Ne2+ {[%emt 0:01:07]} 26. Bxe2 {[%emt 0:00:41]} dxe2 {[%emt 0:00:05]} 27. Qxe2 {[%emt 0:00:14]} c4 {[%emt 0:00:10]} 28. Rc1 {[%emt 0:01:11]} Qb6+ {[%emt 0:00:09]} 29. Qf2 {[%emt 0:02:31]} Qxg6 {[%emt 0:00:11]} 30. Nc5 {[%emt 0:01:34]} Bd4 {[%emt 0:00:15]} 31. Nxb7 {[%emt 0:00:44]} Kxb7 {[%emt 0:01:12]} 0-1

[Event "URU-ch Semi Final 2020"]
[Site "Montevideo"]
[Date "2020.02.23"]
[Round "5.21"]
[White "Bon, Charles"]
[Black "Blanco, Rudemar Ernesto"]
[Result "1-0"]
[ECO "B07"]
[WhiteElo "1614"]
[BlackElo "1470"]
[Annotator "NA RC"]
[PlyCount "53"]
[EventDate "2020.02.22"]
[EventType "swiss"]
[EventCountry "URU"]
[SourceTitle "playchess.com"]
[Source "ChessBase"]
[SourceQuality "1"]
[TimeControl "5400+30"]

1. e4 {[%emt 0:00:00]} d6 {[%emt 0:01:18]} 2. d4 {[%emt 0:00:14]} Nf6 {[%emt 0:00:32]} 3. Nc3 {[%emt 0:00:45]} Nbd7 {[%emt 0:00:33]} 4. f4 {[%emt 0:02:21]} e5 {[%emt 0:00:07]} 5. fxe5 {[%emt 0:04:58]} dxe5 {[%emt 0:01:00]} 6. dxe5 {[%emt 0:00:15]} Nxe5 {[%emt 0:00:36]} 7. Qxd8+ {[%emt 0:00:29]} Kxd8 {[%emt 0:00:11]} 8. Bf4 {[%emt 0:07:16]} Bd6 {[%emt 0:07:01]} 9. O-O-O {[%emt 0:01:02]} Ke7 {[%emt 0:01:24]} 10. Nf3 {[%emt 0:03:42]} Nxf3 {[%emt 0:08:33]} 11. Bxd6+ {[%emt 0:00:35]} cxd6 {[%emt 0:00:38]} 12. gxf3 {[%emt 0:00:10]} a6 {[%emt 0:01:55]} 13. Bc4 {[%emt 0:02:43]} Be6 {[%emt 0:04:26]} 14. Nd5+ {[%emt 0:03:40]} Nxd5 {[%emt 0:02:29]} 15. Bxd5 {[%emt 0:02:50]} Bxd5 {[%emt 0:02:59]} 16. Rxd5 {[%emt 0:00:48]} Rac8 {[%emt 0:00:32]} 17. Rhd1 {[%emt 0:01:12]} Rhd8 {[%emt 0:00:12]} 18. f4 {[%emt 0:04:20]} Rc5 {[%emt 0:02:04]} 19. Rxc5 {[%emt 0:06:00]} dxc5 {[%emt 0:00:14]} 20. Rxd8 {[%emt 0:00:28]} Kxd8 {[%emt 0:00:10]} 21. Kd2 {[%emt 0:00:15]} b5 {[%emt 0:00:57]} 22. Ke3 {[%emt 0:00:14]} Kd7 {[%emt 0:00:24]} 23. e5 {[%emt 0:00:42]} g6 {[%emt 0:00:41]} 24. Ke4 {[%emt 0:00:51]} Ke6 {[%emt 0:00:30]} 25. h4 {[%emt 0:00:30]} h6 {[%emt 0:01:37]} 26. c3 {[%emt 0:01:16]} h5 {[%emt 0:00:27]} 27. b3 {[%emt 0:00:30]} 1-0

[Event "URU-ch Semi Final 2020"]
[Site "Montevideo"]
[Date "2020.02.23"]
[Round "5.22"]
[White "Svarcas, Anibal"]
[Black "Cayetano, Juan"]
[Result "0-1"]
[ECO "C17"]
[WhiteElo "1672"]
[BlackElo "1543"]
[Annotator "NA RC"]
[PlyCount "66"]
[EventDate "2020.02.22"]
[EventType "swiss"]
[EventCountry "URU"]
[SourceTitle "playchess.com"]
[Source "ChessBase"]
[SourceQuality "1"]
[TimeControl "5400+30"]

1. e4 {[%emt 0:00:00]} e6 {[%emt 0:00:00]} 2. d4 {[%emt 0:00:00]} d5 {[%emt 0:00:00]} 3. Nc3 {[%emt 0:00:00]} Bb4 {[%emt 0:00:00]} 4. e5 {[%emt 0:00:00]} c5 {[%emt 0:01:35]} 5. a3 {[%emt 0:00:15]} cxd4 {[%emt 0:01:29]} 6. axb4 {[%emt 0:00:19]} dxc3 {[%emt 0:00:07]} 7. bxc3 {[%emt 0:02:21]} Qc7 {[%emt 0:00:29]} 8. Qd4 {[%emt 0:00:19]} Nc6 {[%emt 0:00:46]} 9. Bb5 {[%emt 0:00:13]} a6 {[%emt 0:00:36]} 10. Nf3 {[%emt 0:01:04]} axb5 {[%emt 0:00:50]} 11. Qc5 {[%emt 0:00:31]} Rxa1 {[%emt 0:00:16]} 12. O-O {[%emt 0:00:10]} Nge7 {[%emt 0:00:26]} 13. Nd4 {[%emt 0:01:13]} O-O {[%emt 0:01:05]} 14. Nxb5 {[%emt 0:00:07]} Qxe5 {[%emt 0:00:18]} 15. Nd4 {[%emt 0:03:11]} Nxd4 {[%emt 0:00:43]} 16. cxd4 {[%emt 0:00:41]} Qf6 {[%emt 0:00:15]} 17. Qc3 {[%emt 0:00:52]} Ra8 {[%emt 0:00:26]} 18. Qd3 {[%emt 0:01:59]} Nc6 {[%emt 0:00:34]} 19. c3 {[%emt 0:00:16]} e5 {[%emt 0:01:01]} 20. dxe5 {[%emt 0:00:36]} Qxe5 {[%emt 0:00:16]} 21. f4 {[%emt 0:00:49]} Qe4 {[%emt 0:00:58]} 22. Qg3 {[%emt 0:00:32]} Re8 {[%emt 0:01:03]} 23. Bd2 {[%emt 0:00:54]} Qc2 {[%emt 0:01:26]} 24. Be1 {[%emt 0:03:02]} Bf5 {[%emt 0:00:31]} 25. Bf2 {[%emt 0:00:53]} Bd3 {[%emt 0:00:36]} 26. Re1 {[%emt 0:01:56]} Rxe1+ {[%emt 0:00:08]} 27. Bxe1 {[%emt 0:00:28]} Qe2 {[%emt 0:00:10]} 28. h4 {[%emt 0:00:23]} Ra1 {[%emt 0:00:19]} 29. Kh2 {[%emt 0:00:16]} Qxe1 {[%emt 0:00:20]} 30. Qg4 {[%emt 0:00:25]} Bf5 {[%emt 0:00:38]} 31. Qxf5 {[%emt 0:00:37]} Qxh4+ {[%emt 0:00:10]} 32. Qh3 {[%emt 0:00:04]} Qxh3+ 33. Kxh3 Nxb4 {[%emt 0:01:08]} 0-1

[Event "URU-ch Semi Final 2020"]
[Site "Montevideo"]
[Date "2020.02.23"]
[Round "5.23"]
[White "Nakle, Gonzalo"]
[Black "Lima Abadal, Nicolas"]
[Result "1-0"]
[ECO "E91"]
[WhiteElo "1675"]
[BlackElo "1646"]
[Annotator "NA RC"]
[PlyCount "73"]
[EventDate "2020.02.22"]
[EventType "swiss"]
[EventCountry "URU"]
[SourceTitle "playchess.com"]
[Source "ChessBase"]
[SourceQuality "1"]
[TimeControl "5400+30"]

1. d4 {[%emt 0:02:17]} Nf6 {[%emt 0:01:48]} 2. c4 {[%emt 0:00:10]} g6 {[%emt 0:00:37]} 3. Nc3 {[%emt 0:00:14]} Bg7 {[%emt 0:00:07]} 4. e4 {[%emt 0:00:06]} d6 {[%emt 0:00:04]} 5. Nf3 {[%emt 0:00:04]} O-O {[%emt 0:00:15]} 6. Be2 {[%emt 0:00:55]} Nbd7 {[%emt 0:01:06]} 7. O-O {[%emt 0:00:41]} e5 {[%emt 0:00:19]} 8. d5 {[%emt 0:00:13]} Nc5 {[%emt 0:04:09]} 9. Qc2 {[%emt 0:01:21]} a5 {[%emt 0:01:41]} 10. a3 {[%emt 0:00:25]} Nh5 {[%emt 0:01:17]} 11. Bg5 {[%emt 0:02:06]} f6 {[%emt 0:00:22]} 12. b4 {[%emt 0:00:06]} fxg5 {[%emt 0:07:01]} 13. bxc5 {[%emt 0:00:08]} g4 {[%emt 0:02:03]} 14. Ne1 {[%emt 0:00:39]} dxc5 {[%emt 0:05:37]} 15. Nd3 {[%emt 0:00:23]} b6 {[%emt 0:01:36]} 16. Rad1 {[%emt 0:00:44]} Nf4 {[%emt 0:14:34]} 17. Nb5 {[%emt 0:01:04]} Bd7 {[%emt 0:02:43]} 18. a4 {[%emt 0:02:54]} Bxb5 {[%emt 0:01:00]} 19. cxb5 {[%emt 0:00:06]} Nxd3 20. Rxd3 {[%emt 0:00:11]} h5 {[%emt 0:07:31]} 21. h3 {[%emt 0:00:22]} gxh3 {[%emt 0:06:53]} 22. Rxh3 {[%emt 0:00:06]} Rf4 {[%emt 0:07:24]} 23. d6 {[%emt 0:00:07]} cxd6 {[%emt 0:00:59]} 24. Qb3+ {[%emt 0:00:07]} Kf8 {[%emt 0:07:32]} 25. Qd5 {[%emt 0:00:06]} Ra7 {[%emt 0:00:27]} 26. Bc4 {[%emt 0:00:05]} Qf6 {[%emt 0:01:20]} 27. Re3 {[%emt 0:01:15]} h4 {[%emt 0:05:12]} 28. Rd3 {[%emt 0:01:54]} Rd7 {[%emt 0:02:01]} 29. Qc6 {[%emt 0:00:44]} Qd8 {[%emt 0:00:08]} 30. g3 {[%emt 0:00:59]} hxg3 {[%emt 0:01:29]} 31. fxg3 {[%emt 0:00:05]} Rxf1+ {[%emt 0:00:58]} 32. Kxf1 {[%emt 0:00:06]} Bf6 {[%emt 0:03:38]} 33. Qd5 {[%emt 0:00:16]} Kg7 {[%emt 0:00:18]} 34. Rf3 {[%emt 0:00:38]} Qh8 {[%emt 0:00:56]} 35. Kg2 {[%emt 0:00:20]} Kh6 {[%emt 0:05:12]} 36. Qe6 {[%emt 0:00:29]} Qd8 {[%emt 0:02:45]} 37. Rxf6 {[%emt 0:00:08]} 1-0